fUST/lending_fUST_20241123
["ID","MTS","AMOUNT","RATE_DAILY","PERIOD"]
[343112482,1732365061627,-1352.71,0.0002,2]
[343112483,1732365061636,-1066.82,0.0002,2]
[343112484,1732365061646,-1355.05,0.0002,2]
[343112485,1732365061657,-655.72,0.0002,2]
[343112486,1732365061666,-500.0,0.0002,2]
[343112487,1732365061678,-501.09,0.0002,2]
[343112488,1732365061688,-500.0,0.0002,2]
[343112489,1732365061699,-500.0,0.0002,2]
[343112490,1732365061709,-500.0,0.0002,2]
[343112491,1732365061719,-2004.0,0.0002,2]
[343112492,1732365061728,-500.0,0.0002,2]
[343112493,1732365061738,-500.0,0.0002,2]
[343112494,1732365061747,-1000.3,0.0002,2]
[343112495,1732365061757,-859.46,0.0002,2]
[343112496,1732365061767,-762.11,0.0002,2]
[343112497,1732365061776,-500.0,0.0002,2]
[343112498,1732365061786,-500.0,0.0002,2]
[343112499,1732365061795,-500.0,0.0002,2]
[343112500,1732365061804,-500.0,0.0002,2]
[343112501,1732365061813,-500.0,0.0002,2]
[343112502,1732365061823,-30968.02,0.0002,2]
[343112503,1732365061832,-500.0,0.0002,2]
[343112504,1732365061842,-5364.8,0.0002,2]
[343112505,1732365061852,-500.0,0.0002,2]
[343112506,1732365061862,-500.0,0.0002,2]
[343112507,1732365061871,-1000.0,0.00020021,2]
[343112508,1732365061881,-1000.0,0.00020021,2]
[343112509,1732365061890,-1000.0,0.00020021,2]
[343112510,1732365061900,-1000.0,0.00020021,2]
[343112511,1732365061910,-153.0,0.00020254,2]
[343112512,1732365061926,-2451.66,0.00020272,2]
[343112513,1732365061936,-1965.55,0.00020272,2]
[343112514,1732365061945,-500.0,0.00020272,2]
[343112515,1732365061955,-1711.65,0.00020272,2]
[343112516,1732365061969,-979.66,0.00020272,2]
[343112517,1732365061978,-672.28,0.00020272,2]
[343112518,1732365061988,-1410.1,0.00020272,2]
[343112519,1732365061998,-500.0,0.00020272,2]
[343112520,1732365062008,-1869.08,0.00020272,2]
[343112521,1732365062017,-891.49,0.00020272,2]
[343112522,1732365062026,-1021.4,0.00020272,2]
[343112523,1732365062035,-500.0,0.00020272,2]
[343112524,1732365062045,-500.0,0.00020272,2]
[343112525,1732365062055,-500.0,0.00020272,2]
[343112526,1732365062064,-530.38760121,0.00020272,2]
[343112527,1732365062074,-606.35,0.00020272,2]
[343112528,1732365062084,-1870.53,0.00020272,2]
[343112529,1732365062094,-4048.23,0.00020272,2]
[343112530,1732365062103,-501.56,0.00020272,2]
[343112531,1732365062113,-500.0,0.00020272,2]
[343112532,1732365062123,-500.0,0.00020272,2]
[343112533,1732365062133,-1338.29,0.00020272,2]
[343112534,1732365062143,-2400.63,0.00020272,2]
[343112535,1732365062154,-1605.49,0.00020272,2]
[343112536,1732365062164,-500.0,0.00020273,2]
[343112537,1732365062176,-500.0,0.00020273,2]
[343112538,1732365062190,-584.6707541,0.00020273,2]
[343112539,1732365062200,-500.0,0.00020273,2]
[343112540,1732365062210,-500.0,0.00020273,2]
[343112541,1732365062222,-500.0,0.00020273,2]
[343112542,1732365062233,-525.34,0.00020273,2]
[343112543,1732365062244,-749.62,0.00020273,2]
[343112544,1732365062254,-500.0,0.00020273,2]
[343112545,1732365062265,-892.67,0.00020273,2]
[343112546,1732365062276,-271.53825241,0.00020273,2]
[343112547,1732365062801,-1861.86,0.00019452,2]
[343112548,1732365062811,-1861.86,0.00019726,2]
[343112549,1732365062821,-1861.86,0.0002,2]
[343112550,1732365062832,-363.98174759,0.00020273,2]
[343112551,1732365062843,-1480.91,0.00020273,2]
[343112552,1732365062853,-500.0,0.00020273,2]
[343112553,1732365062864,-500.0,0.00020273,2]
[343112554,1732365062874,-204.39,0.00020273,2]
[343112555,1732365062884,-527.18,0.00020273,2]
[343112556,1732365062895,-500.0,0.00020273,2]
[343112557,1732365062905,-547.62927803,0.00020273,2]
[343112558,1732365062916,-521.71945525,0.00020273,2]
[343112559,1732365062928,-500.0,0.00020273,2]
[343112560,1732365062938,-790.31,0.00020273,2]
[343112561,1732365062948,-233.91795125,0.00020273,2]
[343112562,1732365062958,-500.0,0.00020273,2]
[343112563,1732365062967,-500.0,0.00020273,2]
[343112564,1732365062977,-1776.9,0.00020273,2]
[343112565,1732365062987,-691.59,0.00020273,2]
[343112566,1732365062998,-972.14,0.00020273,2]
[343112567,1732365063008,-500.0,0.00020273,2]
[343112568,1732365063019,-500.0,0.00020273,2]
[343112569,1732365063028,-500.0,0.00020273,2]
[343112570,1732365063039,-500.0,0.00020273,2]
[343112571,1732365063048,-363.91902717,0.00020273,2]
[343112572,1732365063058,-500.0,0.00020273,2]
[343112573,1732365063069,-709.17,0.00020273,2]
[343112574,1732365063080,-500.0,0.00020273,2]
[343112575,1732365063090,-410.88193792,0.00020273,2]
[343112576,1732365063100,-500.0,0.00020273,2]
[343112577,1732365063111,-500.0,0.00020273,2]
[343112578,1732365063122,-500.0,0.00020273,2]
[343112579,1732365063132,-500.0,0.00020273,2]
[343112580,1732365063143,-532.16,0.00020273,2]
[343112581,1732365063153,-344.5,0.00020273,2]
[343112582,1732365063165,-515.0,0.00020273,2]
[343112583,1732365063177,-500.0,0.00020273,2]
[343112584,1732365063188,-500.0,0.00020273,2]
[343112585,1732365063203,-767.81,0.00020273,2]
[343112586,1732365063214,-500.0,0.00020273,2]
[343112587,1732365063225,-500.0,0.00020273,2]
[343112588,1732365063235,-1313.14,0.00020273,2]
[343112589,1732365063246,-500.0,0.00020273,2]
[343112590,1732365063257,-500.0,0.00020273,2]
[343112591,1732365063267,-500.0,0.00020273,2]
[343112592,1732365063279,-500.0,0.00020273,2]
[343112593,1732365063289,-1365.47,0.00020273,2]
[343112594,1732365063299,-2066.4,0.00020273,2]
[343112595,1732365063309,-664.89,0.00020273,2]
[343112596,1732365063320,-500.0,0.00020273,2]
[343112597,1732365063330,-500.0,0.00020273,2]
[343112598,1732365063341,-500.0,0.00020273,2]
[343112599,1732365063352,-241.66569832,0.00020273,2]
[343112600,1732365063362,-570.15,0.00020273,2]
[343112601,1732365063373,-500.0,0.00020273,2]
[343112602,1732365063383,-500.0,0.00020273,2]
[343112603,1732365063394,-500.0,0.00020273,2]
[343112604,1732365063404,-945.81,0.00020273,2]
[343112605,1732365063416,-500.0,0.00020273,2]
[343112606,1732365063429,-500.0,0.00020273,2]
[343112607,1732365063439,-730.44,0.00020273,2]
[343112608,1732365063449,-500.0,0.00020273,2]
[343112609,1732365063459,-500.0,0.00020273,2]
[343112610,1732365063471,-1009.28,0.00020273,2]
[343112611,1732365063481,-500.0,0.00020273,2]
[343112612,1732365063492,-707.74,0.00020273,2]
[343112613,1732365063505,-500.0,0.00020273,2]
[343112614,1732365063515,-500.0,0.00020273,2]
[343112615,1732365063525,-500.0,0.00020273,2]
[343112616,1732365063535,-500.0,0.00020273,2]
[343112617,1732365063546,-500.0,0.00020273,2]
[343112618,1732365063556,-834.82,0.00020273,2]
[343112619,1732365063566,-611.22,0.00020273,2]
[343112620,1732365063577,-500.0,0.00020273,2]
[343112621,1732365063587,-500.0,0.00020273,2]
[343112622,1732365063598,-885.42,0.00020273,2]
[343112623,1732365063608,-2000.29,0.00020273,2]
[343112624,1732365063619,-1240.12,0.00020273,2]
[343112625,1732365063629,-842.78,0.00020273,2]
[343112626,1732365063639,-578.33,0.00020273,2]
[343112627,1732365063649,-500.0,0.00020273,2]
[343112628,1732365063660,-500.0,0.00020273,2]
[343112629,1732365063670,-1383.33,0.00020273,2]
[343112630,1732365063683,-500.0,0.00020273,2]
[343112631,1732365063694,-500.0,0.00020273,2]
[343112632,1732365063704,-1169.97,0.00020273,2]
[343112633,1732365063715,-1291.18,0.00020273,2]
[343112634,1732365063725,-500.0,0.00020273,2]
[343112635,1732365063736,-646.71,0.00020273,2]
[343112636,1732365063746,-793.31,0.00020273,2]
[343112637,1732365063756,-777.35,0.00020273,2]
[343112638,1732365063766,-500.0,0.00020273,2]
[343112639,1732365063776,-500.0,0.00020273,2]
[343112640,1732365063786,-574.6,0.00020273,2]
[343112641,1732365063796,-675.76,0.00020273,2]
[343112642,1732365063807,-834.23,0.00020273,2]
[343112643,1732365063817,-1775.31,0.00020273,2]
[343112644,1732365063827,-1241.49,0.00020273,2]
[343112645,1732365063837,-500.0,0.00020273,2]
[343112646,1732365063847,-940.78,0.00020273,2]
[343112647,1732365063857,-1036.92,0.00020273,2]
[343112648,1732365063867,-500.0,0.00020273,2]
[343112649,1732365063877,-500.0,0.00020273,2]
[343112650,1732365063888,-559.35,0.00020273,2]
[343112651,1732365063898,-500.0,0.00020273,2]
[343112652,1732365063908,-760.69,0.00020273,2]
[343112653,1732365063918,-500.0,0.00020273,2]
[343112654,1732365063930,-747.52,0.00020273,2]
[343112655,1732365063941,-500.0,0.00020273,2]
[343112656,1732365063952,-652.03,0.00020273,2]
[343112657,1732365063963,-536.77459766,0.00020273,2]
[343112658,1732365063975,-500.0,0.00020273,2]
[343112659,1732365063986,-3171.39,0.00020273,2]
[343112660,1732365063997,-1121.64,0.00020273,2]
[343112661,1732365064008,-500.0,0.00020273,2]
[343112662,1732365064019,-1906.01,0.00020273,2]
[343112663,1732365064031,-1273.82,0.00020273,2]
[343112664,1732365064042,-2677.03,0.00020273,2]
[343112665,1732365064053,-804.49,0.00020273,2]
[343112666,1732365064064,-544.81,0.00020273,2]
[343112667,1732365064074,-500.0,0.00020273,2]
[343112668,1732365064085,-675.75,0.00020273,2]
[343112669,1732365064096,-781.85,0.00020273,2]
[343112670,1732365064107,-500.0,0.00020273,2]
[343112671,1732365064265,-500.0,0.00020273,2]
[343112672,1732365064277,-500.0,0.00020273,2]
[343112673,1732365064287,-500.0,0.00020273,2]
[343112674,1732365064297,-500.0,0.00020273,2]
[343112675,1732365064308,-580.93,0.00020273,2]
[343112676,1732365064317,-500.0,0.00020273,2]
[343112677,1732365064328,-1519.39,0.00020273,2]
[343112678,1732365064338,-500.0,0.00020273,2]
[343112679,1732365064349,-181.01336692,0.00020273,2]
[343112680,1732365064364,-573.70663308,0.00020273,2]
[343112681,1732365064375,-728.64,0.00020273,2]
[343112682,1732365064385,-500.0,0.00020273,2]
[343112683,1732365064395,-179.74735492,0.00020273,2]
[343112780,1732366236235,-181.915938,0.00013973,2]
[343112783,1732366236246,-755.224896,0.00018161,2]
[343112784,1732366236255,-530.0,0.00018397,2]
[343112786,1732366236264,-752.452,0.00018397,2]
[343112787,1732366236273,-442.175,0.00018397,2]
[343112789,1732366236289,-755.224896,0.00018846,2]
[343112791,1732366236303,-284.6988461,0.00019078,2]
[343112793,1732366236313,-164.42,0.00019168,3]
[343112795,1732366236323,-493.29,0.00019168,3]
[343112797,1732366236332,-300.0,0.00019172,2]
[343112798,1732366236342,-300.0,0.00019172,2]
[343112800,1732366236351,-500.0,0.00019173,2]
[343112801,1732366236361,-500.0,0.00019173,2]
[343112802,1732366236371,-495.1096327,0.00019178,2]
[343112803,1732366236380,-507.25050851,0.00019178,2]
[343112804,1732366236390,-500.0,0.00019178,2]
[343112805,1732366236399,-500.0,0.00019178,2]
[343112806,1732366236409,-508.62407299,0.00019178,2]
[343112807,1732366236418,-500.0,0.00019178,2]
[343112808,1732366236428,-500.0,0.00019178,2]
[343112809,1732366236440,-500.0,0.00019178,2]
[343112810,1732366236451,-500.0,0.00019178,2]
[343112811,1732366236461,-500.0,0.00019178,2]
[343112812,1732366236470,-500.0,0.00019178,2]
[343112813,1732366236480,-500.0,0.00019178,2]
[343112814,1732366236489,-500.0,0.00019178,2]
[343112815,1732366236499,-607.85,0.00019178,2]
[343112816,1732366236509,-1635.9,0.00019178,2]
[343112817,1732366236519,-526.37,0.00019178,2]
[343112818,1732366236528,-500.0,0.00019178,2]
[343112819,1732366236538,-500.0,0.00019178,2]
[343112820,1732366236547,-500.0,0.00019178,2]
[343112821,1732366236557,-500.0,0.00019178,2]
[343112822,1732366236566,-748.76,0.00019178,2]
[343112823,1732366236576,-500.0,0.00019178,2]
[343112824,1732366236585,-578.27,0.00019178,2]
[343112825,1732366236594,-799.01,0.00019178,2]
[343112826,1732366236604,-500.0,0.00019178,2]
[343112827,1732366236613,-500.0,0.00019178,2]
[343112828,1732366236623,-500.0,0.00019178,2]
[343112829,1732366236632,-604.00010338,0.00019178,2]
[343112830,1732366236646,-660.9,0.00019178,2]
[343112831,1732366236660,-500.0,0.00019178,2]
[343112832,1732366236670,-500.0,0.00019178,2]
[343112833,1732366236680,-500.0,0.00019178,2]
[343112834,1732366236692,-500.0,0.00019178,2]
[343112835,1732366236702,-500.0,0.00019178,2]
[343112836,1732366236711,-500.0,0.00019178,2]
[343112837,1732366236722,-500.0,0.00019178,2]
[343112838,1732366236732,-1095.13,0.00019178,2]
[343112839,1732366236741,-500.0,0.00019178,2]
[343112840,1732366236751,-500.0,0.00019178,2]
[343112841,1732366236760,-500.0,0.00019178,2]
[343112842,1732366236770,-500.0,0.00019178,2]
[343112843,1732366236779,-660.43,0.00019178,2]
[343112844,1732366236793,-500.0,0.00019178,2]
[343112845,1732366236803,-744.79,0.00019178,2]
[343112846,1732366236813,-500.0,0.00019178,2]
[343112847,1732366236824,-448.33878922,0.00019178,2]
[343112848,1732366236835,-602.21,0.00019178,2]
[343112849,1732366236844,-500.0,0.00019178,2]
[343112850,1732366236854,-500.0,0.00019178,2]
[343112851,1732366236863,-2349.5,0.00019178,2]
[343112852,1732366236873,-500.0,0.00019178,2]
[343112853,1732366236882,-2006.5,0.00019178,2]
[343112854,1732366236893,-1551.55,0.00019178,2]
[343112855,1732366236902,-500.0,0.00019178,2]
[343112856,1732366236912,-500.0,0.00019178,2]
[343112857,1732366236921,-271.94738463,0.00019178,2]
[343112858,1732366236931,-500.0,0.00019178,2]
[343112859,1732366236942,-500.0,0.00019178,2]
[343112860,1732366236951,-1039.57,0.00019178,2]
[343112861,1732366236960,-1747.31,0.00019178,2]
[343112862,1732366236970,-1202.85,0.00019178,2]
[343112863,1732366236979,-1000.07,0.00019178,2]
[343112864,1732366236989,-686.29,0.00019178,2]
[343112865,1732366236998,-500.0,0.00019178,2]
[343112866,1732366237007,-1081.0,0.00019178,2]
[343112867,1732366237017,-500.0,0.00019178,2]
[343112868,1732366237026,-500.0,0.00019178,2]
[343112869,1732366237035,-1439.48,0.00019178,2]
[343112870,1732366237045,-500.0,0.00019178,2]
[343112871,1732366237054,-500.0,0.00019178,2]
[343112872,1732366237064,-604.53,0.00019178,2]
[343112873,1732366237073,-500.0,0.00019178,2]
[343112874,1732366237083,-500.0,0.00019178,2]
[343112875,1732366237092,-500.0,0.00019178,2]
[343112876,1732366237101,-415.13669013,0.00019178,2]
[343112877,1732366237111,-1113.01,0.00019178,2]
[343112878,1732366237121,-500.0,0.00019178,2]
[343112879,1732366237131,-500.0,0.00019178,2]
[343112880,1732366237140,-910.06,0.00019178,2]
[343112881,1732366237150,-500.0,0.00019178,2]
[343112882,1732366237163,-500.0,0.00019178,2]
[343112883,1732366237173,-500.0,0.00019178,2]
[343112884,1732366237183,-500.0,0.00019178,2]
[343112885,1732366237195,-500.0,0.00019178,2]
[343112886,1732366237204,-500.0,0.00019178,2]
[343112887,1732366237213,-1063.52,0.00019178,2]
[343112888,1732366237223,-1125.44,0.00019178,2]
[343112889,1732366237232,-500.0,0.00019178,2]
[343112890,1732366237242,-500.0,0.00019178,2]
[343112891,1732366237251,-500.0,0.00019178,2]
[343112892,1732366237261,-500.0,0.00019178,2]
[343112893,1732366237271,-384.12836852,0.00019178,2]
[343112894,1732366237280,-999.35,0.00019178,2]
[343112895,1732366237290,-522.08,0.00019178,2]
[343112896,1732366237299,-1708.58,0.00019178,2]
[343112897,1732366237309,-500.0,0.00019178,2]
[343112898,1732366237319,-500.0,0.00019178,2]
[343112899,1732366237333,-1059.27,0.00019178,2]
[343112900,1732366237342,-552.4,0.00019178,2]
[343112901,1732366237351,-719.88,0.00019178,2]
[343112902,1732366237360,-615.14,0.00019178,2]
[343112903,1732366237370,-500.0,0.00019178,2]
[343112904,1732366237379,-499.11787745,0.00019178,2]
[343112905,1732366237388,-1102.89,0.00019178,2]
[343112906,1732366237397,-581.08,0.00019178,2]
[343112907,1732366237406,-500.0,0.00019178,2]
[343112908,1732366237415,-1792.59,0.00019178,2]
[343112909,1732366237425,-500.0,0.00019178,2]
[343112910,1732366237434,-500.0,0.00019178,2]
[343112911,1732366237446,-677.62,0.00019178,2]
[343112912,1732366237456,-500.0,0.00019178,2]
[343112913,1732366237465,-3879.56,0.00019178,2]
[343112914,1732366237475,-663.99,0.00019178,2]
[343112915,1732366237484,-500.0,0.00019178,2]
[343112916,1732366237494,-500.0,0.00019178,2]
[343112917,1732366237503,-577.21,0.00019178,2]
[343112918,1732366237512,-500.0,0.00019178,2]
[343112919,1732366237522,-176.12478133,0.00019178,2]
[343112920,1732366237532,-833.58,0.00019178,2]
[343112921,1732366237542,-500.0,0.00019178,2]
[343112922,1732366237551,-1516.41,0.00019178,2]
[343112923,1732366237561,-500.0,0.00019178,2]
[343112924,1732366237570,-500.0,0.00019178,2]
[343112925,1732366237579,-1060.44,0.00019178,2]
[343112926,1732366237588,-500.0,0.00019178,2]
[343112927,1732366237598,-500.0,0.00019178,2]
[343112928,1732366237607,-500.0,0.00019178,2]
[343112929,1732366237617,-638.51,0.00019178,2]
[343112930,1732366237626,-500.0,0.00019178,2]
[343112931,1732366237635,-885.71,0.00019178,2]
[343112932,1732366237645,-500.0,0.00019178,2]
[343112933,1732366237656,-500.0,0.00019178,2]
[343112934,1732366237665,-571.75374436,0.00019178,2]
[343112935,1732366237675,-500.0,0.00019178,2]
[343112936,1732366237684,-500.0,0.00019178,2]
[343112937,1732366237696,-500.0,0.00019178,2]
[343112938,1732366237706,-500.0,0.00019178,2]
[343112939,1732366237716,-500.0,0.00019178,2]
[343112940,1732366237727,-500.0,0.00019178,2]
[343112941,1732366237738,-516.19,0.00019178,2]
[343112942,1732366237748,-593.45,0.00019178,2]
[343112943,1732366237758,-1282.52,0.00019178,2]
[343112944,1732366237769,-500.0,0.00019178,2]
[343112945,1732366237778,-887.97,0.00019178,2]
[343112946,1732366237789,-500.0,0.00019178,2]
[343112947,1732366237801,-2300.61,0.00019178,2]
[343112948,1732366237812,-500.0,0.00019178,2]
[343112949,1732366237825,-500.0,0.00019178,2]
[343112950,1732366237836,-393.41849383,0.00019178,2]
[343112951,1732366237846,-528.07,0.00019178,2]
[343112952,1732366237856,-1538.6,0.00019178,2]
[343112953,1732366237866,-1008.44,0.00019178,2]
[343112954,1732366237877,-500.0,0.00019178,2]
[343112955,1732366237887,-636.89,0.00019178,2]
[343112956,1732366237898,-500.0,0.00019178,2]
[343112957,1732366237907,-15646.18392588,0.00019178,2]
[343112958,1732366237925,-999.7066692,0.00019178,2]
[343112959,1732366237936,-1221.91875,0.00019178,2]
[343112960,1732366237951,-825.58552961,0.00019178,2]
[343112961,1732366237964,-6774.39999993,0.00019178,2]
[343112962,1732366237977,-6532.49512538,0.00019178,2]
[343112964,1732366237988,-500.0,0.00019178,2]
[343112966,1732366237998,-672.04,0.00019178,2]
[343112969,1732366238009,-534.97,0.00019178,2]
[343112972,1732366238018,-500.0,0.00019178,2]
[343112975,1732366238028,-626.8,0.00019178,2]
[343112976,1732366238038,-500.0,0.00019178,2]
[343112977,1732366238048,-500.0,0.00019178,2]
[343112978,1732366238058,-500.0,0.00019178,2]
[343112980,1732366238068,-500.0,0.00019178,2]
[343112982,1732366238078,-635.09,0.00019178,2]
[343112983,1732366238088,-500.0,0.00019178,2]
[343112984,1732366238097,-545.04006233,0.00019178,2]
[343112985,1732366238107,-500.0,0.00019178,2]
[343112986,1732366238117,-706.69,0.00019178,2]
[343112987,1732366238127,-500.0,0.00019178,2]
[343112988,1732366238137,-500.0,0.00019178,2]
[343112989,1732366238148,-500.0,0.00019178,2]
[343112990,1732366238158,-1504.44,0.00019178,2]
[343112991,1732366238168,-4470.66,0.00019178,2]
[343112992,1732366238178,-1264.94,0.00019178,2]
[343112993,1732366238188,-500.0,0.00019178,2]
[343112994,1732366238201,-500.0,0.00019178,2]
[343112995,1732366238212,-200.0,0.00019178,2]
[343112996,1732366238222,-500.0,0.00019178,2]
[343112997,1732366238232,-597.49,0.00019178,2]
[343112999,1732366238242,-830.37,0.00019178,2]
[343113000,1732366238252,-2510.69,0.00019178,2]
[343113002,1732366238262,-500.0,0.00019178,2]
[343113004,1732366238272,-500.0,0.00019178,2]
[343113006,1732366238282,-500.0,0.00019178,2]
[343113007,1732366238292,-1529.76,0.00019178,2]
[343113008,1732366238302,-500.0,0.00019178,2]
[343113009,1732366238312,-256.10308401,0.00019178,2]
[343113010,1732366238322,-950.08,0.00019178,2]
[343113011,1732366238332,-500.0,0.00019178,2]
[343113012,1732366238341,-500.0,0.00019178,2]
[343113013,1732366238353,-500.0,0.00019178,2]
[343113014,1732366238363,-2119.31,0.00019178,2]
[343113015,1732366238373,-500.0,0.00019178,2]
[343113016,1732366238383,-500.0,0.00019178,2]
[343113017,1732366238392,-618.96,0.00019178,2]
[343113018,1732366238402,-500.0,0.00019178,2]
[343113020,1732366238412,-882.37,0.00019178,2]
[343113022,1732366238422,-500.0,0.00019178,2]
[343113024,1732366238432,-1056.35,0.00019178,2]
[343113026,1732366238443,-872.19,0.00019178,2]
[343113027,1732366238452,-500.0,0.00019178,2]
[343113028,1732366238462,-500.0,0.00019178,2]
[343113029,1732366238471,-1217.38,0.00019178,2]
[343113030,1732366238480,-500.0,0.00019178,2]
[343113031,1732366238490,-576.84,0.00019178,2]
[343113032,1732366238500,-453.19163089,0.00019178,2]
[343113033,1732366238509,-7473.65,0.00019178,2]
[343113034,1732366238519,-500.0,0.00019178,2]
[343113035,1732366238536,-590.73,0.00019178,2]
[343113036,1732366238549,-500.0,0.00019178,2]
[343113037,1732366238558,-500.0,0.00019178,2]
[343113038,1732366238568,-500.0,0.00019178,2]
[343113039,1732366238577,-500.0,0.00019178,2]
[343113040,1732366238587,-500.0,0.00019178,2]
[343113041,1732366238596,-674.66,0.00019178,2]
[343113042,1732366238605,-500.0,0.00019178,2]
[343113043,1732366238614,-405.09914158,0.00019178,2]
[343113044,1732366238623,-500.0,0.00019178,2]
[343113045,1732366238632,-500.0,0.00019178,2]
[343113046,1732366238641,-538.85,0.00019178,2]
[343113047,1732366238650,-500.0,0.00019178,2]
[343113048,1732366238659,-500.0,0.00019178,2]
[343113049,1732366238670,-605.75,0.00019178,2]
[343113050,1732366238679,-500.0,0.00019178,2]
[343113051,1732366238689,-307.47173795,0.00019178,2]
[343113052,1732366238703,-850.07,0.00019178,2]
[343113053,1732366238714,-500.0,0.00019178,2]
[343113054,1732366238723,-1816.65,0.00019178,2]
[343113056,1732366238732,-500.0,0.00019178,2]
[343113057,1732366238742,-13459.67,0.00019178,2]
[343113058,1732366238752,-882.91,0.00019178,2]
[343113059,1732366238762,-500.0,0.00019178,2]
[343113060,1732366238771,-500.0,0.00019178,2]
[343113061,1732366238781,-5328.25,0.00019178,2]
[343113062,1732366238795,-738.33,0.00019178,2]
[343113063,1732366238804,-700.55,0.00019178,2]
[343113064,1732366238814,-500.0,0.00019178,2]
[343113065,1732366238823,-630.05211107,0.00019178,2]
[343113066,1732366238834,-575.52,0.00019178,2]
[343113067,1732366238843,-4056.23,0.00019178,2]
[343113068,1732366238853,-500.0,0.00019178,2]
[343113069,1732366238863,-546.44,0.00019178,2]
[343113070,1732366238874,-1127.26,0.00019178,2]
[343113071,1732366238882,-500.0,0.00019178,2]
[343113072,1732366238889,-716.22,0.00019178,2]
[343113073,1732366238898,-889.01,0.00019178,2]
[343113074,1732366238907,-500.0,0.00019178,2]
[343113075,1732366238915,-500.0,0.00019178,2]
[343113076,1732366238924,-1129.2,0.00019178,2]
[343113077,1732366238933,-500.0,0.00019178,2]
[343113078,1732366238940,-500.0,0.00019451,2]
[343113079,1732366238953,-285.55326408,0.00019451,2]
[343113080,1732366238963,-486.3621777,0.00019452,2]
[343113081,1732366238971,-500.0,0.00019452,2]
[343113082,1732366238979,-525.56629383,0.00019452,2]
[343113083,1732366238989,-309.41753655,0.00019452,2]
[343113084,1732366238997,-500.0,0.00019452,2]
[343113085,1732366239004,-500.0,0.00019452,2]
[343113086,1732366239012,-500.0,0.00019452,2]
[343113087,1732366239021,-500.0,0.00019452,2]
[343113088,1732366239030,-500.0,0.00019452,2]
[343113089,1732366239037,-607.85,0.00019452,2]
[343113090,1732366239046,-1635.9,0.00019452,2]
[343113091,1732366239053,-526.37,0.00019452,2]
[343113092,1732366239061,-500.0,0.00019452,2]
[343113093,1732366239069,-500.0,0.00019452,2]
[343113094,1732366239076,-500.0,0.00019452,2]
[343113095,1732366239083,-500.0,0.00019452,2]
[343113096,1732366239292,-748.76,0.00019452,2]
[343113097,1732366239300,-500.0,0.00019452,2]
[343113098,1732366239307,-578.27,0.00019452,2]
[343113099,1732366239316,-799.01,0.00019452,2]
[343113100,1732366239323,-500.0,0.00019452,2]
[343113101,1732366239330,-484.72224084,0.00019452,2]
[343113102,1732366239336,-500.0,0.00019452,2]
[343113103,1732366239344,-660.9,0.00019452,2]
[343113104,1732366239353,-500.0,0.00019452,2]
[343113105,1732366239363,-184.2690791,0.00019452,2]